fUSD/lending_fUSD_20260213
["ID","MTS","AMOUNT","RATE_DAILY","PERIOD"]
[405291799,1770948649471,-151.0,0.00036986,31]
[405291800,1770948649480,-151.0,0.00036986,31]
[405291801,1770948649490,-151.0,0.00036986,31]
[405291802,1770948649501,-151.0,0.00036986,31]
[405291803,1770948649511,-151.0,0.00036986,31]
[405291804,1770948649520,-151.0,0.00036986,31]
[405291805,1770948649530,-151.0,0.00036986,31]
[405291806,1770948649540,-151.0,0.00036986,31]
[405291807,1770948649550,-151.0,0.00036986,31]
[405291808,1770948649560,-151.0,0.00036986,31]
[405291809,1770948649570,-217.185973,0.00036986,31]
[405291810,1770948649579,-204.272542,0.00036986,31]
[405291811,1770948649589,-151.0,0.00036986,31]
[405291812,1770948649599,-246.134611,0.00036986,31]
[405291813,1770948649609,-151.0,0.00036986,31]
[405291814,1770948649619,-151.0,0.00036986,31]
[405291815,1770948649628,-151.0,0.00036986,31]
[405291816,1770948649638,-151.0,0.00036986,31]
[405291817,1770948649648,-151.0,0.00036986,31]
[405291818,1770948649657,-151.0,0.00036986,31]
[405291819,1770948649667,-152.302548,0.00036986,31]
[405291820,1770948649677,-151.0,0.00036986,31]
[405291821,1770948649686,-151.647773,0.00036986,31]
[405291822,1770948649696,-151.0,0.00036986,31]
[405291823,1770948649706,-151.0,0.00036986,31]
[405291824,1770948649715,-153.66688,0.00036986,31]
[405291825,1770948649727,-151.000018,0.00036986,31]
[405291826,1770948649740,-151.0,0.00036986,31]
[405291827,1770948649750,-151.0,0.00036986,31]
[405291828,1770948649760,-152.8158,0.00036986,31]
[405291829,1770948649770,-165.519734,0.00036986,31]
[405291830,1770948649780,-151.0,0.00036986,31]
[405291831,1770948649790,-151.0,0.00036986,31]
[405291832,1770948649800,-151.0,0.00036986,31]
[405291833,1770948649809,-151.0,0.00036986,31]
[405291834,1770948649819,-151.0,0.00036986,31]
[405291835,1770948649829,-151.0,0.00036986,31]
[405291836,1770948649838,-261.554186,0.00036986,31]
[405291837,1770948649849,-766.452474,0.00036986,31]
[405291838,1770948649858,-766.452474,0.00036986,31]
[405291839,1770948649867,-766.452474,0.00036986,31]
[405291840,1770948649883,-766.452474,0.00036986,31]
[405291841,1770948649893,-766.452474,0.00036986,31]
[405291842,1770948649902,-766.452474,0.00036986,31]
[405291843,1770948649911,-766.452474,0.00036986,31]
[405291844,1770948649925,-766.452474,0.00036986,31]
[405291845,1770948649935,-766.452474,0.00036986,31]
[405291846,1770948649953,-766.452474,0.00036986,31]
[405291847,1770948649963,-766.452474,0.00036986,31]
[405291848,1770948649973,-766.452474,0.00036986,31]
[405291849,1770948649982,-766.452474,0.00036986,31]
[405291850,1770948649993,-766.452474,0.00036986,31]
[405291851,1770948650003,-766.452474,0.00036986,31]
[405291852,1770948650013,-766.452474,0.00036986,31]
[405291853,1770948650023,-151.0,0.00036986,7]
[405291854,1770948650034,-151.0,0.00036986,7]
[405291855,1770948650044,-151.0,0.00036986,7]
[405291856,1770948650055,-151.0,0.00036986,7]
[405291857,1770948650065,-151.0,0.00036986,7]
[405291858,1770948650076,-151.0,0.00036986,7]
[405291859,1770948650085,-243.320913,0.00036986,7]
[405291860,1770948650096,-151.0,0.00036986,31]
[405291861,1770948650106,-151.0,0.00036986,31]
[405291862,1770948650115,-151.0,0.00036986,31]
[405291863,1770948650125,-243.901371,0.00036986,31]
[405291864,1770948650135,-151.0,0.00036986,31]
[405291865,1770948650146,-151.0,0.00036986,31]
[405291866,1770948650155,-160.0,0.00037,7]
[405291867,1770948650165,-2350.52272699,0.00037091,3]
[405291868,1770948650176,-152.0,0.00037127,5]
[405291869,1770948650187,-181.1738333,0.000372,120]
[405291870,1770948650196,-2603.23343551,0.00037909,3]
[405291871,1770948650207,-41943.48,0.00038,14]
[405291872,1770948650217,-41943.49,0.00038,2]
[405291873,1770948650227,-1000.0,0.00038107,7]
[405291874,1770948650237,-150.0,0.00038252,2]
[405291875,1770948650248,-1999.0,0.00038356,120]
[405291876,1770948650258,-301.348649,0.00038356,120]
[405291877,1770948650270,-1006.72,0.000384,14]
[405291878,1770948650280,-705.93,0.000386,14]
[405291879,1770948650290,-500.0,0.00038679,120]
[405291880,1770948650300,-500.0,0.000387,120]
[405291881,1770948650310,-2734.37734712,0.00038727,3]
[405291882,1770948650320,-6593.0,0.00039018,2]
[405291883,1770948650331,-2450.0,0.00039018,2]
[405291884,1770948650341,-1323.23953428,0.00039067,4]
[405291885,1770948650351,-8371.02870071,0.00039153,3]
[405291886,1770948650360,-1999.0,0.00039178,120]
[405291887,1770948650371,-1771.62509047,0.00039399,30]
[405291888,1770948650381,-1064.82419073,0.00039399,30]
[405291889,1770948650391,-300.0,0.00039399,10]
[405291890,1770948650401,-936.69,0.000394,30]
[405291891,1770948650411,-725315.30310097,0.000394,7]
[405291892,1770948650421,-158.441673,0.000394,120]
[405291893,1770948650431,-158.441673,0.000394,120]
[405291894,1770948650440,-158.441673,0.000394,120]
[405291895,1770948650451,-158.441673,0.000394,120]
[405291896,1770948650461,-151.0,0.000394,120]
[405291897,1770948650470,-295.086623,0.000394,120]
[405291898,1770948650480,-152.0,0.000394,6]
[405291899,1770948650490,-2865.52125874,0.00039545,3]
[405291900,1770948650500,-2000.0,0.000396,2]
[405291901,1770948650511,-1000.0,0.000396,2]
[405291902,1770948650520,-150.0,0.00039683,2]
[405291903,1770948650529,-150.0,0.00039683,2]
[405291904,1770948650539,-150.0,0.00039683,2]
[405291905,1770948650549,-150.0,0.00039683,2]
[405291906,1770948650559,-150.0,0.00039683,2]
[405291907,1770948650568,-150.0,0.00039683,2]
[405291908,1770948650578,-3488.0,0.00039683,2]
[405291909,1770948650588,-617.0,0.00039683,2]
[405291910,1770948650598,-1288.0,0.00039683,2]
[405291911,1770948650608,-1274.0,0.00039683,2]
[405291912,1770948650618,-1208.0,0.00039683,2]
[405291913,1770948650627,-918.0,0.00039683,2]
[405291914,1770948650638,-153.87003674,0.0003978,7]
[405291915,1770948650648,-77777.82706922,0.00039781,7]
[405291916,1770948650658,-1570.59,0.000398,14]
[405291917,1770948650668,-151.0,0.00039814,120]
[405291918,1770948650678,-151.0,0.00039814,120]
[405291919,1770948650687,-151.0,0.00039814,120]
[405291920,1770948650697,-154.468476,0.00039814,120]
[405291921,1770948650707,-151.0,0.00039814,120]
[405291922,1770948650716,-1558.3040724,0.00039817,2]
[405291923,1770948650726,-370.41196631,0.00039817,2]
[405291924,1770948650736,-300.0,0.00039817,2]
[405291925,1770948650745,-300.0,0.00039817,2]
[405291926,1770948650755,-300.0,0.00039817,2]
[405291927,1770948650765,-300.0,0.00039817,2]
[405291928,1770948650775,-300.0,0.00039817,2]
[405291929,1770948650785,-300.0,0.00039817,2]
[405291930,1770948650795,-300.0,0.00039817,2]
[405291931,1770948650805,-300.0,0.00039817,2]
[405291932,1770948650816,-572.39029516,0.00039817,2]
[405291933,1770948650826,-1558.3040724,0.00039817,2]
[405291934,1770948650836,-300.0,0.00039817,2]
[405291935,1770948650846,-300.0,0.00039817,2]
[405291936,1770948650856,-300.0,0.00039817,2]
[405291937,1770948650866,-300.0,0.00039817,2]
[405291938,1770948650876,-1558.3040724,0.00039817,2]
[405291939,1770948650886,-499.32241604,0.00039817,2]
[405291940,1770948650895,-1558.3040724,0.00039817,2]
[405291941,1770948650905,-1558.3040724,0.00039817,2]
[405291942,1770948650918,-1558.3040724,0.00039817,2]
[405291943,1770948650929,-1558.3040724,0.00039817,2]
[405291944,1770948650938,-1558.3040724,0.00039817,2]
[405291945,1770948650948,-1558.68796301,0.00039817,2]
[405291946,1770948650959,-1684.28760723,0.00039817,2]
[405291947,1770948650968,-365.93929912,0.00039842,15]
[405291948,1770948650978,-154.0,0.00039871,90]
[405291949,1770948650990,-1771.62509047,0.00039999,30]
[405291950,1770948651000,-152.0,0.0004,120]
[405291951,1770948651009,-250.0,0.0004,120]
[405291952,1770948651019,-1999.15330172,0.0004,30]
[405291953,1770948651029,-18756.47676473,0.0004,120]
[405291954,1770948651040,-9184.45512093,0.0004,120]
[405291955,1770948651050,-2833.44808598,0.0004,120]
[405291956,1770948651061,-160.0,0.0004,120]
[405291957,1770948651071,-160.0,0.0004,7]
[405291958,1770948651081,-152.0,0.0004,120]
[405291959,1770948651091,-10427.32,0.0004,120]
[405291960,1770948651102,-594.69,0.0004,120]
[405291961,1770948651113,-206.74,0.0004,120]
[405291962,1770948651123,-315.05,0.0004,120]
[405291963,1770948651134,-160.0,0.0004,120]
[405291964,1770948651145,-160.0,0.0004,30]
[405291965,1770948651155,-160.0,0.0004,7]
[405291966,1770948651165,-330.9681585,0.0004,120]
[405291967,1770948651174,-1999.0,0.0004,120]
[405291968,1770948651184,-150.0,0.00040165,2]
[405291969,1770948651194,-1113.29,0.00040183,120]
[405291970,1770948651205,-2996.66517035,0.00040364,3]
[405291971,1770948651215,-1999.0,0.00040821,120]
[405291972,1770948651225,-152.0,0.000409,120]
[405291973,1770948651235,-152.0,0.00041,120]
[405291974,1770948651246,-600.5276648,0.00041,30]
[405291975,1770948651255,-300.0,0.00041,120]
[405291976,1770948651266,-736.78934911,0.00041068,120]
[405291977,1770948651276,-300.0,0.00041068,22]
[405291978,1770948651286,-839.0,0.00041096,120]
[405291979,1770948651296,-20000.0,0.00041096,120]
[405291980,1770948651307,-179.942559,0.00041096,120]
[405291981,1770948651317,-179.942559,0.00041096,120]
[405291982,1770948651327,-179.942559,0.00041096,120]
[405291983,1770948651336,-179.942559,0.00041096,120]
[405291984,1770948651347,-179.942559,0.00041096,120]
[405291985,1770948651357,-179.942559,0.00041096,120]
[405291986,1770948651367,-179.942559,0.00041096,120]
[405291987,1770948651377,-179.942559,0.00041096,120]
[405291988,1770948651387,-179.942559,0.00041096,120]
[405291989,1770948651398,-179.942559,0.00041096,120]
[405291990,1770948651407,-179.942559,0.00041096,120]
[405291991,1770948651418,-179.942559,0.00041096,120]
[405291992,1770948651428,-179.942559,0.00041096,120]
[405291993,1770948651438,-179.942559,0.00041096,120]
[405291994,1770948651449,-179.942559,0.00041096,120]
[405291995,1770948651458,-179.942559,0.00041096,120]
[405291996,1770948651470,-179.942559,0.00041096,120]
[405291997,1770948651480,-179.942559,0.00041096,120]
[405291998,1770948651491,-179.942559,0.00041096,120]
[405291999,1770948651502,-179.942554,0.00041096,120]
[405292000,1770948651511,-3127.80908196,0.00041182,3]
[405292001,1770948651521,-705.93,0.000412,14]
[405292002,1770948651531,-160.0,0.000412,120]
[405292003,1770948651541,-154.0,0.00041425,90]
[405292004,1770948651551,-151.0,0.00041504,120]
[405292005,1770948651561,-151.0,0.00041504,120]
[405292006,1770948651571,-151.0,0.00041604,120]
[405292007,1770948651582,-151.0,0.00041604,120]
[405292008,1770948651595,-1999.0,0.00041643,120]
[405292009,1770948651836,-839.0,0.00041644,120]
[405292010,1770948651854,-152.0,0.00041673,7]
[405292011,1770948651864,-9521.83310289,0.00041697,3]
[405292012,1770948651874,-1006.72,0.000417,14]
[405292013,1770948651883,-152.0,0.000417,120]
[405292014,1770948651893,-151.0,0.00041704,120]
[405292015,1770948651902,-151.0,0.00041704,120]
[405292016,1770948651913,-300.0,0.00041799,30]
[405292017,1770948651924,-1570.59,0.000418,14]
[405292018,1770948651933,-151.0,0.00041804,120]
[405292019,1770948651943,-151.0,0.00041804,120]
[405292020,1770948651952,-152.0,0.000419,120]
[405292021,1770948651962,-151.0,0.00041904,120]
[405292022,1770948651972,-151.0,0.00041904,120]
[405292023,1770948651981,-250.0,0.00042,120]
[405292024,1770948651992,-1074.10229,0.00042,20]
[405292025,1770948652001,-3258.95299368,0.00042,3]
[405292026,1770948652011,-10000.00705973,0.00042,120]
[405292027,1770948652020,-300.0,0.00042,120]
[405292028,1770948652030,-766.452474,0.00042,120]
[405292029,1770948652040,-766.452474,0.00042,120]
[405292030,1770948652050,-766.452474,0.00042,120]
[405292031,1770948652059,-766.452465,0.00042,120]
[405292032,1770948652070,-151.0,0.00042,120]
[405292033,1770948652081,-41943.48,0.00042,14]
[405292034,1770948652091,-151.0,0.00042,7]
[405292035,1770948652100,-335.033903,0.00042,120]
[405292036,1770948652110,-335.033903,0.00042,120]
[405292037,1770948652120,-335.033903,0.00042,120]
[405292038,1770948652129,-335.033898,0.00042,120]
[405292039,1770948652139,-500.0,0.00042,120]
[405292040,1770948652148,-151.0,0.00042004,120]
[405292041,1770948652158,-151.0,0.00042004,120]
[405292042,1770948652167,-6593.0,0.00042018,2]
[405292043,1770948652177,-2450.0,0.00042018,2]
[405292044,1770948652187,-400.0,0.00042088,120]
[405292045,1770948652196,-162.47765603,0.00042088,120]
[405292046,1770948652207,-151.0,0.00042104,120]
[405292047,1770948652217,-151.0,0.00042104,120]
[405292048,1770948652227,-150.0,0.00042173,120]
[405292049,1770948652236,-839.0,0.00042192,120]
[405292050,1770948652246,-151.0,0.00042204,120]
[405292051,1770948652256,-151.0,0.00042204,120]
[405292052,1770948652266,-151.0,0.00042304,120]
[405292053,1770948652276,-151.0,0.00042404,120]
[405292054,1770948652287,-659.06,0.00042438,120]
[405292055,1770948652297,-1999.0,0.00042465,120]
[405292056,1770948652307,-152.902,0.00042481,64]
[405292057,1770948652317,-705.93,0.000425,14]
[405292058,1770948652327,-228.65859226,0.000425,120]
[405292059,1770948652337,-500.0,0.000425,120]
[405292060,1770948652347,-151.0,0.00042504,120]
[405292061,1770948652356,-220.0,0.0004255,120]
[405292062,1770948652367,-659.06,0.00042575,120]
[405292063,1770948652376,-152.0,0.000426,120]
[405292064,1770948652386,-151.0,0.00042604,120]
[405292065,1770948652395,-150.0,0.00042683,2]
[405292066,1770948652406,-3488.0,0.00042683,2]
[405292067,1770948652416,-617.0,0.00042683,2]
[405292068,1770948652426,-1288.0,0.00042683,2]
[405292069,1770948652436,-1274.0,0.00042683,2]
[405292070,1770948652447,-1208.0,0.00042683,2]
[405292071,1770948652456,-918.0,0.00042683,2]
[405292072,1770948652466,-1570.59,0.000427,14]
[405292073,1770948652476,-266.0,0.000427,60]
[405292074,1770948652485,-151.0,0.00042704,120]
[405292075,1770948652495,-659.06,0.00042712,120]
[405292076,1770948652503,-486.6,0.0004274,120]
[405292077,1770948652513,-4000.0,0.0004274,14]
[405292078,1770948652522,-151.0,0.00042804,120]
[405292079,1770948652532,-659.06,0.00042849,120]
[405292080,1770948652542,-1384.35785523,0.00042854,2]
[405292081,1770948652553,-152.0,0.000429,120]
[405292082,1770948652563,-10229.44019873,0.000429,120]
[405292083,1770948652573,-4965.79731975,0.000429,120]
[405292084,1770948652583,-4965.79731973,0.000429,120]
[405292085,1770948652594,-4965.79731973,0.000429,120]
[405292086,1770948652604,-4965.79731973,0.000429,120]
[405292087,1770948652615,-4965.79731973,0.000429,120]
[405292088,1770948652624,-4965.79731973,0.000429,120]
[405292089,1770948652636,-4965.79731973,0.000429,120]
[405292090,1770948652648,-4965.79731973,0.000429,120]
[405292091,1770948652659,-4965.79731973,0.000429,120]
[405292092,1770948652668,-4965.79731973,0.000429,120]
[405292093,1770948652679,-4965.79731973,0.000429,120]
[405292094,1770948652689,-4965.79731973,0.000429,120]
[405292095,1770948652698,-4965.79731973,0.000429,120]
[405292096,1770948652708,-4965.79731973,0.000429,120]
[405292097,1770948652718,-4965.79731973,0.000429,120]
[405292098,1770948652727,-4965.79731973,0.000429,120]
[405292099,1770948652737,-4965.79731973,0.000429,120]
[405292100,1770948652747,-4965.79731973,0.000429,120]
[405292101,1770948652757,-4965.79731973,0.000429,120]
[405292102,1770948652767,-4965.79731973,0.000429,120]
[405292103,1770948652776,-151.0,0.00042904,120]
[405292104,1770948652787,-659.06,0.00042986,120]
[405292105,1770948652797,-1006.72,0.00043,14]
[405292106,1770948652806,-27999.929999,0.00043,30]
[405292107,1770948652817,-3590.50076231,0.00043,120]
[405292108,1770948652827,-500.0,0.00043,120]
[405292109,1770948652836,-4730.0333266,0.00043,20]
[405292110,1770948652846,-1000.0,0.00043,120]
[405292111,1770948652855,-300.0,0.00043,120]
[405292112,1770948652865,-500.0,0.00043,120]
[405292113,1770948652874,-151.0,0.00043004,120]
[405292114,1770948652884,-384.02006358,0.00043018,2]
[405292115,1770948652893,-160.0,0.00043068,120]
[405292116,1770948652902,-151.0,0.00043104,120]
[405292117,1770948652915,-659.06,0.00043123,120]
[405292118,1770948652925,-169.98429568,0.000432,30]
[405292119,1770948652935,-150.0,0.000432,30]
[405292120,1770948652944,-150.0,0.000432,30]
[405292121,1770948652955,-150.0,0.000432,30]
[405292122,1770948652964,-151.0,0.00043204,120]
[405292123,1770948652973,-66166.83104345,0.0004321,120]
[405292124,1770948652984,-485.0,0.0004323,30]
[405292125,1770948652994,-160.10510946,0.00043256,120]
[405292126,1770948653004,-659.06,0.0004326,120]
[405292127,1770948653014,-1999.0,0.00043287,120]
[405292128,1770948653023,-2000.0,0.000433,2]
[405292129,1770948653033,-151.0,0.00043304,120]
[405292130,1770948653042,-915.40895618,0.00043319,120]
[405292131,1770948653052,-659.06,0.00043397,120]
[405292132,1770948653062,-152.0,0.000434,120]
[405292133,1770948653072,-151.0,0.00043404,120]
[405292134,1770948653082,-400.0,0.00043417,120]
[405292135,1770948653092,-400.0,0.00043417,120]
[405292136,1770948653101,-400.0,0.00043417,120]
[405292137,1770948653111,-400.0,0.00043417,120]
[405292138,1770948653121,-400.0,0.00043417,120]
[405292139,1770948653131,-400.0,0.00043417,120]
[405292140,1770948653141,-224.89572815,0.00043417,120]
[405292141,1770948653152,-150.0,0.00043429,30]
[405292142,1770948653162,-10307.00591928,0.0004344,120]
[405292143,1770948653172,-154.0,0.00043496,90]
[405292144,1770948653182,-705.93,0.000435,14]
[405292145,1770948653192,-5457.888157,0.000435,120]
[405292146,1770948653202,-500.0,0.000435,120]
[405292147,1770948653212,-151.0,0.00043504,120]
[405292148,1770948653222,-659.06,0.00043534,120]
[405292149,1770948653232,-500.0,0.0004355,120]
[405292150,1770948653242,-1570.59,0.000436,14]
[405292151,1770948653252,-150.0,0.00043636,30]
[405292152,1770948653263,-11300.69,0.00043645,4]
[405292153,1770948653273,-150.0,0.00043657,30]
[405292154,1770948653283,-659.06,0.00043671,120]
[405292155,1770948653293,-485.0,0.00043676,30]
[405292156,1770948653304,-160.143999,0.000437,14]
[405292157,1770948653314,-300.0,0.00043723,120]
[405292158,1770948653324,-300.0,0.00043723,120]
[405292159,1770948653334,-1000.0,0.000438,30]
[405292160,1770948653344,-7258.0196449,0.000438,120]
[405292161,1770948653354,-431.33,0.000438,120]
[405292162,1770948653364,-659.06,0.00043808,120]
[405292163,1770948653374,-174.23610302,0.00043819,10]
[405292164,1770948653384,-428.0,0.00043825,2]
[405292165,1770948653395,-500.0,0.00043835,2]
[405292166,1770948653404,-500.0,0.00043835,2]
[405292167,1770948653414,-347.47224215,0.00043835,2]
[405292168,1770948653424,-500.0,0.00043835,120]
[405292169,1770948653434,-344.97315917,0.00043835,120]
[405292170,1770948653443,-500.0,0.00043835,120]
[405292171,1770948653453,-332.56021286,0.00043835,120]
[405292172,1770948653463,-501.73542496,0.00043835,7]
[405292173,1770948653472,-500.0,0.00043835,120]
[405292174,1770948653481,-300.56,0.00043835,120]
[405292175,1770948653491,-155.08400195,0.00043835,120]
[405292176,1770948653501,-500.0,0.00043835,120]
[405292177,1770948653511,-500.0,0.00043835,120]
[405292178,1770948653521,-612.52407821,0.00043835,120]
[405292179,1770948653530,-648.58,0.00043835,120]
[405292180,1770948653540,-648.58,0.00043835,120]
[405292181,1770948653549,-648.58,0.00043835,120]
[405292182,1770948653559,-648.58,0.00043835,120]
[405292183,1770948653568,-648.58,0.00043835,120]
[405292184,1770948653578,-648.58,0.00043835,120]
[405292185,1770948653588,-648.58,0.00043835,120]
[405292186,1770948653598,-648.58,0.00043835,120]
[405292187,1770948653608,-648.58,0.00043835,120]
[405292188,1770948653617,-648.58,0.00043835,120]
[405292189,1770948653627,-648.58,0.00043835,120]
[405292190,1770948653636,-648.58,0.00043835,120]
[405292191,1770948653645,-648.58,0.00043835,120]
[405292192,1770948653655,-648.58,0.00043835,120]
[405292193,1770948653664,-648.58,0.00043835,120]
[405292194,1770948653674,-648.58,0.00043835,120]
[405292195,1770948653684,-648.58,0.00043835,120]
[405292196,1770948653693,-648.58,0.00043835,120]
[405292197,1770948653703,-648.58,0.00043835,120]
[405292198,1770948653713,-648.58,0.00043835,120]
[405292199,1770948653722,-648.58,0.00043835,120]
[405292200,1770948653732,-648.58,0.00043835,120]
[405292201,1770948653741,-648.58,0.00043835,120]
[405292202,1770948653751,-648.74734628,0.00043835,120]
[405292203,1770948653760,-349.53153789,0.00043835,2]
[405292204,1770948653770,-500.0,0.00043835,120]
[405292205,1770948653779,-500.0,0.00043835,120]
[405292206,1770948653789,-500.0,0.00043835,120]
[405292207,1770948653798,-500.0,0.00043835,120]
[405292208,1770948653807,-500.0,0.00043835,120]
[405292209,1770948653817,-500.0,0.00043835,120]
[405292210,1770948653826,-500.0,0.00043835,120]
[405292211,1770948653835,-500.0,0.00043835,120]
[405292212,1770948653845,-500.0,0.00043835,120]
[405292213,1770948653854,-500.0,0.00043835,120]
[405292214,1770948653863,-500.0,0.00043835,120]
[405292215,1770948653872,-500.0,0.00043835,120]
[405292216,1770948653881,-500.0,0.00043835,120]
[405292217,1770948653889,-500.0,0.00043835,120]
[405292218,1770948653898,-500.0,0.00043835,120]
[405292219,1770948653907,-500.0,0.00043835,120]
[405292220,1770948653919,-500.0,0.00043835,120]
[405292221,1770948653928,-500.0,0.00043835,120]
[405292222,1770948653937,-500.0,0.00043835,120]
[405292223,1770948653946,-518.98655505,0.00043835,120]
[405292224,1770948653955,-1499.13,0.00043835,120]
[405292225,1770948653965,-1499.13,0.00043835,120]
[405292226,1770948653974,-1499.13,0.00043835,120]
[405292227,1770948653984,-1499.13,0.00043835,120]
[405292228,1770948653994,-1499.13,0.00043835,120]
[405292229,1770948654003,-1499.13,0.00043835,120]
[405292230,1770948654012,-1499.13,0.00043835,120]
[405292231,1770948654021,-1499.13,0.00043835,120]
[405292232,1770948654031,-1499.13,0.00043835,120]
[405292233,1770948654040,-1499.13,0.00043835,120]
[405292234,1770948654049,-1499.13,0.00043835,120]
[405292235,1770948654058,-1499.13,0.00043835,120]
[405292236,1770948654068,-1499.13,0.00043835,120]
[405292237,1770948654077,-1499.13,0.00043835,120]
[405292238,1770948654086,-1499.13,0.00043835,120]
[405292239,1770948654095,-1499.13,0.00043835,120]
[405292240,1770948654105,-1499.13,0.00043835,120]
[405292241,1770948654114,-1499.13,0.00043835,120]
[405292242,1770948654123,-1499.13,0.00043835,120]
[405292243,1770948654132,-1499.13,0.00043835,120]
[405292244,1770948654142,-1499.13,0.00043835,120]
[405292245,1770948654151,-1499.13,0.00043835,120]
[405292246,1770948654161,-1499.13,0.00043835,120]
[405292247,1770948654218,-1499.15720092,0.00043835,120]
[405292248,1770948654227,-213.43569385,0.00043835,120]
[405292249,1770948654238,-500.0,0.00043835,120]
[405292250,1770948654247,-500.0,0.00043835,120]
[405292251,1770948654257,-500.0,0.00043835,120]
[405292252,1770948654266,-500.0,0.00043835,120]
[405292253,1770948654277,-500.0,0.00043835,120]
[405292254,1770948654288,-500.0,0.00043835,120]
[405292255,1770948654300,-500.0,0.00043835,120]
[405292256,1770948654310,-500.0,0.00043835,120]
[405292257,1770948654320,-487.76330357,0.00043835,120]
[405292258,1770948654331,-500.0,0.00043835,120]
[405292259,1770948654340,-500.0,0.00043835,120]
[405292260,1770948654350,-500.0,0.00043835,120]
[405292261,1770948654360,-500.0,0.00043835,120]
[405292262,1770948654369,-500.0,0.00043835,120]
[405292263,1770948654379,-500.0,0.00043835,120]
[405292264,1770948654389,-500.0,0.00043835,120]
[405292265,1770948654399,-500.0,0.00043835,120]
[405292266,1770948654409,-500.0,0.00043835,120]
[405292267,1770948654418,-500.0,0.00043835,120]
[405292268,1770948654427,-500.0,0.00043835,120]
[405292269,1770948654436,-285.06702535,0.00043835,120]
[405292270,1770948654446,-500.0,0.00043835,120]
[405292271,1770948654455,-500.0,0.00043835,120]
[405292272,1770948654464,-500.0,0.00043835,120]
[405292273,1770948654473,-500.0,0.00043835,120]
[405292274,1770948654482,-500.0,0.00043835,120]
[405292275,1770948654491,-500.0,0.00043835,120]
[405292276,1770948654500,-500.0,0.00043835,120]
[405292277,1770948654509,-500.0,0.00043835,120]
[405292278,1770948654518,-500.0,0.00043835,120]
[405292279,1770948654527,-500.0,0.00043835,120]
[405292280,1770948654537,-500.0,0.00043835,120]
[405292281,1770948654547,-500.0,0.00043835,120]
[405292282,1770948654556,-500.0,0.00043835,120]
[405292283,1770948654564,-500.0,0.00043835,120]
[405292284,1770948654573,-500.0,0.00043835,120]
[405292285,1770948654583,-427.7586756,0.00043835,120]
[405292286,1770948654592,-500.0,0.00043835,120]
[405292287,1770948654601,-500.0,0.00043835,120]
[405292288,1770948654610,-500.0,0.00043835,120]
[405292289,1770948654619,-500.0,0.00043835,120]
[405292290,1770948654628,-500.0,0.00043835,120]
[405292291,1770948654637,-500.0,0.00043835,120]
[405292292,1770948654646,-500.0,0.00043835,120]
[405292293,1770948654656,-500.0,0.00043835,120]
[405292294,1770948654665,-566.56372715,0.00043835,120]
[405292295,1770948654675,-500.0,0.00043835,120]
[405292296,1770948654684,-500.0,0.00043835,120]
[405292297,1770948654693,-500.0,0.00043835,120]
[405292298,1770948654701,-500.0,0.00043835,120]